Cogmind - Beta 9.6 @@@ ROGUE MODE // 2020.09.05 @ 14:43:02 Player: Hermelin Result: Destroyed by G-34 Mercenary with Small Laser Performance ------------- Evolutions (0) 0 Regions Visited (4) 800 Robots Destroyed (48) 240 Value Destroyed (1153) 1153 Prototype IDs (41) 820 Alien Tech Used (0) 0 Bonus (300) 300 TOTAL SCORE: 3313 Bonus ------- Aligned with FarCom 300 Cogmind --------- Core Integrity 0/250 Matter 300/300 Energy 250/250 System Corruption 3% Temperature Cool (224) Movement Core (700) Ox13 Location -9/Mines Parts ------- > --- POWER (1) -------- Ion Engine > --- PROPULSION (2) --- (None) > --- UTILITY (2) ------ Large Storage Unit Large Storage Unit > --- WEAPON (2) ------- Particle Gun > --- INVENTORY (16) --- Heat Sink Large Storage Unit Large Battery (300) Large Matter Pod (150) Signal Interpreter Improved Terrain Scanner Core Shielding Propulsion Shielding Tractor Beam Light Assault Rifle Light Assault Rifle Rocket Launcher Datajack Mining Laser Longsword +1 Peak State ------------ > --- POWER ------------ Ion Engine > --- PROPULSION ------- Light Treads Wheel > --- UTILITY ---------- Large Storage Unit Large Storage Unit > --- WEAPON ----------- Light Assault Rifle Datajack > --- INVENTORY -------- Heat Sink Large Storage Unit Large Battery Large Matter Pod Signal Interpreter Improved Terrain Scanner Core Shielding Propulsion Shielding Tractor Beam Assault Rifle Light Assault Rifle Light Assault Rifle Mining Laser Longsword +1 [Rating: 9] Favorites ----------- Power Ion Engine Engine Ion Engine Propulsion Light Treads Treads Light Treads Leg Aluminum Leg Wheel Wheel Utility Large Storage Unit Storage Large Storage Unit Weapon Assault Rifle Energy Gun Medium Laser Energy Cannon Beam Cannon Ballistic Gun Assault Rifle Special Melee Weapon Datajack Build | -11 -10 -10 -10 -9 ------- Run | Scr Mat Min Exi Min Slots Evolved . | . . . . . Power . | . . . . . Propulsion . | . . . . . Utility . | . . . . . Weapon . | . . . . . Parts Attached 26 | 7 9 5 1 4 Power 4 | 1 1 1 . 1 Engine 4 | 1 1 1 . 1 Core . | . . . . . Reactor . | . . . . . Propulsion 8 | 2 3 2 . 1 Treads 6 | 2 3 1 . . Leg 1 | . . . . 1 Wheel 1 | . . 1 . . Hover . | . . . . . Flight . | . . . . . Utility 5 | 2 3 . . . Device . | . . . . . Storage 5 | 2 3 . . . Processor . | . . . . . Hackware . | . . . . . Protection . | . . . . . Artifact . | . . . . . Weapon 9 | 2 2 2 1 2 Energy Gun 2 | . 1 . . 1 Energy Cannon 1 | . 1 . . . Ballistic Gun 5 | 2 . 2 . 1 Ballistic Cannon . | . . . . . Launcher . | . . . . . Special Weapon . | . . . . . Impact Weapon . | . . . . . Slashing Weapon . | . . . . . Piercing Weapon . | . . . . . Special Melee Weapon 1 | . . . 1 . Unidentified Prototypes . | . . . . . Parts Lost 12 | . 2 5 . 5 Power 1 | . . 1 . . Propulsion 6 | . 1 2 . 3 Utility . | . . . . . Weapon 5 | . 1 2 . 2 Highest Loss Streak 4 | . 2 2 . 4 Average Slot Usage (%) 99 | . 99 98 100 89 Engine 14 | . 14 14 14 14 Treads 23 | . 27 22 14 5 Wheel 4 | . . 4 14 10 Storage 28 | . 28 28 28 28 Energy Gun 3 | . . 11 . 3 Energy Cannon 5 | . 9 . . . Ballistic Gun 17 | . 18 15 15 21 Special Melee Weapon 2 | . . . 12 1 Naked Turns . | . . . . . Heaviest Build 42 | 17 42 41 39 41 Greatest Support 40 | 40 40 40 10 10 Greatest Overweight (x) 13 | . 1 3 3 13 Average Overweight (x) 1 | . . 1 3 3 Largest Inventory Capacity 16 | 8 16 16 16 16 Average Capacity 15 | 7 15 16 16 16 Most Carried 16 | 6 16 15 14 16 Average Carried 13 | 3 14 13 13 15 Final Capacity 16 | 8 16 16 16 16 Final Carried 15 | 6 15 14 14 15 Class Distribution -------------------- 95% | Mutant 4% | Scavenger-Mutant Dominant Class ---------------- Mutant | -10/Materials Mutant | -10/Mines Mutant | -10/Exiles Mutant | -9/Mines Resources | -11 -10 -10 -10 -9 ----------- Run | Scr Mat Min Exi Min Matter Collected 1118 | 318 596 106 . 98 Remotely . | . . . . . Salvage Created 1636 | 92 1093 237 . 214 Parts 113 | 7 72 20 . 14 Haulers Intercepted 2 | . 2 . . . Recyclers Shooed 1 | . 1 . . . Parts Field Recycled . | . . . . . Retrieved Matter . | . . . . . Parts Self-Destructed . | . . . . . Prevented . | . . . . . Kills | -11 -10 -10 -10 -9 ------- Run | Scr Mat Min Exi Min Combat Hostiles Destroyed 37 | . 23 9 . 5 Guns 29 | . 15 9 . 5 Cannons 8 | . 8 . . . Classes Destroyed 8 | 2 5 . . 1 Tunneler 2 | 2 . . . . Hauler 2 | . 2 . . . Recycler 2 | 1 1 . . . Operator 2 | . 2 . . . Watcher 3 | . 3 . . . Swarmer 11 | . 5 6 . . Grunt 25 | . 18 3 . 4 Duelist 1 | . . . . 1 Best Kill Streak 5 | 2 5 3 . 3 Combat Bots Only 4 | . 4 3 . 3 Max Kills in Single Turn 2 | 1 2 1 . 1 Gunslinging 1 | . 1 . . . Exploded . | . . . . . Melee . | . . . . . Uniques/NPCs Destroyed . | . . . . . Combat | -11 -10 -10 -10 -9 -------- Run | Scr Mat Min Exi Min Damage Taken 1734 | . 926 371 . 437 Core 255 | . 103 42 . 110 Absorbed by Shields . | . . . . . Core Remaining (%) 100 | 100 . . . . Volleys Fired 137 | 8 79 27 . 23 Largest 2 | 2 2 2 . 2 Hottest 85 | 40 80 70 . 85 Shots Fired 255 | 16 148 51 . 40 Gun 216 | 16 109 51 . 40 Cannon 39 | . 39 . . . Launcher . | . . . . . Special . | . . . . . Kinetic 180 | 16 107 28 . 29 Thermal 75 | . 41 23 . 11 Explosive . | . . . . . Electromagnetic . | . . . . . Robot Hit Streak 18 | 7 18 11 . 5 Robot Miss Streak 4 | 1 3 4 . 4 Penetration Max . | . . . . . Secondary Targets 4 | . 1 3 . . Max Gunslinging Chain 1 | . 1 1 . . Shots Hit Robots 173 | 13 94 36 5 25 Core Hits 73 | 4 42 16 . 11 Critical Hits 2 | . 1 . . 1 Critical Kills 2 | . 1 . . 1 Critical Parts Destroyed . | . . . . . Melee Attacks 5 | . . . 5 . Impact . | . . . . . Slashing . | . . . . . Piercing . | . . . . . Sneak Attacks 5 | . . . 5 . Combat Hostiles . | . . . . . Follow-up Attacks . | . . . . . Damage Inflicted 2104 | 161 1291 392 . 260 Guns 1653 | 161 840 392 . 260 Cannons 440 | . 440 . . . Explosions . | . . . . . Melee . | . . . . . Ramming 11 | . 11 . . . Kinetic 1364 | 161 840 166 . 197 Thermal 729 | . 440 226 . 63 Explosive . | . . . . . Electromagnetic . | . . . . . Impact . | . . . . . Slashing . | . . . . . Piercing . | . . . . . Highest Corruption 3 | . 3 3 3 3 Average Corruption 2 | . 2 3 3 3 Corruption Purged . | . . . . . Effects 39 | . 15 10 9 5 Message Errors 11 | . 3 4 3 1 Matter Fused 8 | . 3 3 1 1 Heat Flow Errors 6 | . 3 1 2 . Energy Discharges 4 | . 2 . 1 1 Data Loss (minor) 9 | . 4 2 2 1 Targeting Errors 1 | . . . . 1 Overload Shots . | . . . . . Overflow Damage 8 | . 8 . . . Projectiles 8 | . 8 . . . Explosions . | . . . . . Melee . | . . . . . Knockbacks . | . . . . . Impact . | . . . . . Kinetic . | . . . . . Secondary . | . . . . . Self-Inflicted Damage . | . . . . . Shots . | . . . . . Rammed 1 | . 1 . . . Targets Rammed 1 | . 1 . . . Kicked . | . . . . . Crushed . | . . . . . Highest Temperature 267 | 6 250 248 267 252 Average Temperature 90 | 6 89 79 122 104 Received Heat Transfer 666 | . 321 132 . 213 Effects 4 | . . 2 1 1 Energy Bleed 2 | . . . 1 1 Interference 2 | . . 2 . . Siege Activations . | . . . . . Robots Corrupted . | . . . . . Combat Hostiles . | . . . . . Parts Fried . | . . . . . Impact Corruptions . | . . . . . Robots Melted . | . . . . . Combat Hostiles . | . . . . . Parts Melted 3 | . 1 1 . 1 Heat Transferred 1665 | . 888 629 . 148 Parts Sabotaged . | . . . . . Parts Stolen . | . . . . . Parts Stripped . | . . . . . Power Chain Reactions . | . . . . . Missiles Intercepted . | . . . . . Alert | -11 -10 -10 -10 -9 ------- Run | Scr Mat Min Exi Min Peak Influence 358 | 15 358 236 . 70 Average Influence 183 | 8 224 150 . 29 Maximum Alert Level 1 | . 1 1 . . Low Security (%) 43 | 100 32 49 . 100 Level 1 56 | . 67 50 . . Level 2 . | . . . . . Level 3 . | . . . . . Level 4 . | . . . . . Level 5 . | . . . . . High Security . | . . . . . Max Security . | . . . . . Squads Dispatched 10 | . 10 . . . Investigation 9 | . 9 . . . Extermination . | . . . . . Reinforcement 1 | . 1 . . . Assault . | . . . . . Garrison . | . . . . . Intercept . | . . . . . Construction Impeded . | . . . . . Haulers Reinforced . | . . . . . Stealth | -11 -10 -10 -10 -9 --------- Run | Scr Mat Min Exi Min Distress Signals 2 | . 2 . . . Communications Jammed . | . . . . . Distress Signals . | . . . . . Times Spotted 50 | . 33 10 . 7 Peak Tracking Total 6 | . 6 3 . 3 Tactical Retreats 4 | . 2 1 . 1 Traps | -11 -10 -10 -10 -9 ------- Run | Scr Mat Min Exi Min Traps Triggered 5 | . 5 . . . Indirectly . | . . . . . Trap Hack Attempts . | . . . . . Triggered . | . . . . . Disarmed . | . . . . . Reprogrammed . | . . . . . Reused . | . . . . . Traps Extracted . | . . . . . Installed . | . . . . . Triggered . | . . . . . Machines | -11 -10 -10 -10 -9 ---------- Run | Scr Mat Min Exi Min Machines Disabled 1 | . 1 . . . Max in Single Turn 1 | . 1 . . . Machines Sabotaged . | . . . . . Garrisons Compromised . | . . . . . Overloaded Fab Kills . | . . . . . Fab Network Shutdowns . | . . . . . Hacking | -11 -10 -10 -10 -9 --------- Run | Scr Mat Min Exi Min Machines Accessed 11 | . 9 . 2 . Terminals 7 | . 7 . . . Fabricators . | . . . . . Repair Stations . | . . . . . Recycling Units 2 | . 2 . . . Scanalyzers . | . . . . . Garrison Access . | . . . . . Total Hacks 39 | . 37 . 2 . Successful 23 | . 21 . 2 . Failed 15 | . 15 . . . Catastrophic 1 | . 1 . . . Database Lockouts 1 | . 1 . . . Manual 25 | . 24 . 1 . Terminals 31 | . 31 . . . Fabricators . | . . . . . Repair Stations . | . . . . . Recycling Units 6 | . 6 . . . Scanalyzers . | . . . . . Garrison Access . | . . . . . Terminal Hacks 17 | . 15 . 2 . Record 1 | . . . 1 . Robot Analysis 4 | . 4 . . . Prototype ID Bank 3 | . 3 . . . Branch Access Points 2 | . 2 . . . Recycling Unit Index 1 | . 1 . . . Locate Traps 2 | . 2 . . . Recall Investigation 1 | . 1 . . . Hauler Manifests 1 | . 1 . . . Zone Layout 1 | . 1 . . . EX-Prototype ID Bank 1 | . . . 1 . Fabricator Hacks . | . . . . . Repair Station Hacks . | . . . . . Recycling Unit Hacks 3 | . 3 . . . Report Inventory 2 | . 2 . . . Retrieve Components 1 | . 1 . . . Scanalyzer . | . . . . . Garrison Access Hacks . | . . . . . Unauthorized Hacks 3 | . 3 . . . Terminals 1 | . 1 . . . Botnet 1 | . 1 . . . Fabricators . | . . . . . Repair Stations . | . . . . . Recycling Units 2 | . 2 . . . Tunnel 2 | . 2 . . . Scanalyzers . | . . . . . Garrison Access . | . . . . . Data Cores Recovered . | . . . . . Used . | . . . . . Hacking Detections 8 | . 8 . . . Full Trace Events 5 | . 5 . . . Feedback Events . | . . . . . Feedback Blocked . | . . . . . Robot Schematics Acquired . | . . . . . Robots Built . | . . . . . Matter . | . . . . . Time . | . . . . . Total Robot Build Rating . | . . . . . Part Schematics Acquired . | . . . . . Parts Built . | . . . . . Matter . | . . . . . Time . | . . . . . Total Part Build Rating . | . . . . . Parts Repaired . | . . . . . Time . | . . . . . Parts Recycled . | . . . . . Recycled Matter . | . . . . . Retrieved Matter . | . . . . . Retrieved Components 9 | . 9 . . . Parts Scanalyzed . | . . . . . Part Schematics Acquired . | . . . . . Parts Damaged . | . . . . . Bothacking | -11 -10 -10 -10 -9 ------------ Run | Scr Mat Min Exi Min Used RIF Installer . | . . . . . Robots Hacked 5 | . . . 5 . Non-combat 4 | . . . 4 . Combat 1 | . . . 1 . Robot Hacks Applied 5 | . . . 5 . parse_system 5 | . . . 5 . Relay Couplers Released . | . . . . . Robots Rewired . | . . . . . Allies Hacked . | . . . . . Hacks Repelled . | . . . . . Allies | -11 -10 -10 -10 -9 -------- Run | Scr Mat Min Exi Min Total Allies . | . . . . . Largest Group . | . . . . . Highest-Rated Group . | . . . . . Highest-Rated Ally . | . . . . . Total Orders . | . . . . . Ally Attacks . | . . . . . Total Damage . | . . . . . Kills . | . . . . . Allies Corrupted . | . . . . . Allies Melted . | . . . . . Intel | -11 -10 -10 -10 -9 ------- Run | Scr Mat Min Exi Min Robot Analysis Total 4 | . 4 . . . Derelict Logs Recovered 2 | . . 2 . . Drone Launches 1 | . . . 1 . Drone Recoveries . | . . . . . Exploration | -11 -10 -10 -10 -9 ------------- Run | Scr Mat Min Exi Min Turns Passed 3118 | 143 1591 722 548 114 Spaces Moved 1759 | 66 723 458 486 26 Core 3 | 2 . . . 1 Treads 1037 | 64 723 250 . . Legs . | . . . . . Wheels 719 | . . 208 486 25 Hover . | . . . . . Flight . | . . . . . Fastest Speed 50 | 50 160 110 110 110 Average Speed 147 | 156 177 138 110 132 Slowest Speed 700 | 160 180 180 110 700 Overloaded Moves . | . . . . . Propulsion Burnouts . | . . . . . Robots Hopped . | . . . . . Cave-ins Triggered . | . . . . . Exploration Rate (%) 53 | 5 98 74 78 13 Regions Visited 4 Branch Regions 3 Pre-discovered Areas 3 | . 2 . 1 . Known Exits Taken 2 | . 1 . 1 . Unknown Exits Taken 2 | 1 . 1 . . Scrap Searched 2 | . . 2 . . Spaces Dug . | . . . . . Terrain Destroyed . | . . . . . Melee . | . . . . . Projectile . | . . . . . AOE . | . . . . . Actions | -11 -10 -10 -10 -9 --------- Run | Scr Mat Min Exi Min Total 2033 | 86 884 501 494 68 Wait 71 | . 50 9 . 12 Move 1755 | 65 722 457 485 26 Hop . | . . . . . Pick Up 25 | 6 13 3 1 2 Fast Attach 10 | 7 1 1 . 1 Attach 7 | . 2 4 . 1 Detach 1 | . 1 . . . Swap 9 | . 6 . 1 2 Drop 11 | . 9 . 1 1 Fire 137 | 8 79 27 . 23 Melee 5 | . . . 5 . Ram . | . . . . . Kick . | . . . . . Crush 1 | . 1 . . . Escape Stasis . | . . . . . Rewire . | . . . . . Trap . | . . . . . Miscellaneous 1 | . . . 1 . Route ------- -11/Scrapyard -10/Materials (discovered 4 exits: [*Mat x2] / *Min x2) -10/Mines (discovered 2 exits: [*Mat] / *Exi) -10/Exiles (discovered 2 exits: *Min x2) -9/Mines History --------- Turn | Location | Event 4 | -11/Scrapyard | Discovered new exit (range 16) 144 | -11/Scrapyard | Entered Materials 269 | -10/Materials | Discovered new exit (range 16) 339 | -10/Materials | Build established: Mutant 1162 | -10/Materials | Discovered new exit (range 12) 1164 | -10/Materials | Identified exit to Mines 1385 | -10/Materials | Discovered new exit (range 4) 1679 | -10/Materials | Central database locked down 1735 | -10/Materials | Entered Mines 1737 | -10/Mines | Met a Derelict bent on vengeance 2135 | -10/Mines | Learned 8 Materials zone layouts 2177 | -10/Mines | Core integrity fell below 50% 2301 | -10/Mines | Deemed a non-threat by the Exiles lab entrance 2301 | -10/Mines | Discovered new exit (range 5) 2325 | -10/Mines | Discovered new exit (range 15) 2457 | -10/Mines | Entered Exiles 2458 | -10/Exiles | Identified exit to Mines 2484 | -10/Exiles | Met 8R-AWN 2500 | -10/Exiles | Met EX-HEX 2554 | -10/Exiles | Met EX-BIN 2591 | -10/Exiles | Met EX-DEC 2596 | -10/Exiles | Learned location of Zion (-7) 2642 | -10/Exiles | Visited The Gauntlet 2849 | -10/Exiles | Aligned with FarCom system 2850 | -10/Exiles | Given EX-Vault access code 2876 | -10/Exiles | Opened EX-Vault 2893 | -10/Exiles | Found Longsword +1 2918 | -10/Exiles | Warned to stay clear of 0b10 Research branches 3005 | -10/Exiles | Left Exiles lab with Longsword +1 3005 | -10/Exiles | Entered Mines 3005 | -9/Mines | Accompanied by 1 ally 3012 | -9/Mines | Received a Rocket Launcher from a helpful Derelict 3089 | -9/Mines | Core integrity fell below 20% 3119 | -9/Mines | Destroyed by G-34 Mercenary with Small Laser Last Messages --------------- 03055_ G-34 Mercenary destroyed. 03058_ Acquired 34 matter. 03063_ Dropped Ion Engine. 03066_ Acquired Aluminum Leg. 03067_ Acquired 38 matter. 03069_ System corrupted: Matter fused (-10). 03069_ Acquired Particle Gun. 03080_ System corrupted: Lgt. Assault Rifle targeting data glitched. 03082_ Wheel destroyed. 03082_ Assault Rifle destroyed. 03086_ L-31 Rogue destroyed. 03095_ G-34 Mercenary suffers critical hit. 03095_ G-34 Mercenary destroyed. 03096_ Aluminum Leg destroyed. 03098_ Acquired 26 matter. 03100_ Lgt. Assault Rifle destroyed. 03113_ System corrupted: Component data lost. 03113_ Ion Engine melted. 03113_ G-34 Mercenary destroyed. 03114_ Overheating: Energy bleed (-40). Map ----- +----------------------------------------------------+ | ?????????????????????????####??? | | ????# ?????????????####### ##?? | | ????# #???????## #?? | | ????# ##### #?? | | # ##?? | | ?????# ##### ##??? | | ?????###?????????## #???? | | ??????????????????## #???? | | ???????????????????## ## #???? | | ????????????????????###### #???? | | ?????????????????????????# #???? | | ?????????????????????????# #???? | | ?????????????????????????# #???? | | ??????##?????????????????# ##??? | | ??????# ??????????????###g ##?? | | ??????? ???????????## #?? | | ???????? ?????????## #?? | | ?????????? ????????# ##?? | | ??????????? ???????# ##??? | | ????????????? ??????# ##???? | | ?????????????? ????## *!#????? | | ???????????????# ????### #????? | | ????????????????# ?????# #????? | | ????????????????# ???##%#????? | | ????????????????# [### *##???? | | ?????????????????# ![% =@*##??? | | ?????????????????# !%= = n#??? | | ????????????????# *## #??? | | ?????????????# ?## #??? | | ????????????# ???## #?? | | ????????????# ?????## #? | | ????????????## ???????## #? | | ?????????????# ??????????###? | | ?????????????# ??????????????? | | ?????????????# ??????????????? | | ????????????# ???????????????? | | ???????????? ????????????????? | | ??????????? ?????????????????? | | ??????????# ??????????????????? | | ??????????##???????????????????? | | ???????????????????????????????? | | ???????????????????????????????? | | ???????????????????????????????? | | ???????????????????????????????? | | ???????????????????????????????? | | ???????????????????????????????? | | ???????????????????????????????? | | ???????????????????????????????? | | ???????????????????????????????? | | | +----------------------------------------------------+ Best States ------------- Heat Dissipation 25 Energy Generation 10 Energy Capacity 250 Matter Stores 300 Matter Capacity 300 Sight Range 16 Terrain Scan Density 10 Evasion (%) 40 Recoil Reduction 2 Item Schematics ----------------- None Robot Schematics ------------------ None Fabricated ------------ Nothing Alien Tech Used ----------------- None Achievements -------------- None Challenges ------------ None Game ------ Seed BiometalDynamicRouter Manual? 0 Play Time 00:25:48 Cumulative 192.4 hours Start 2020.09.05 @ 14:16:09 End 2020.09.05 @ 14:43:02 Sessions 1 Manual Loads 0 Difficulty Rogue Special Mode None Game No. 78 Rogue 78 Adventurer 0 Explorer 0 Win Type - Total 3 Types 2/0/0/1/0/0/0 Lore% 80 Gallery% 77 Achievement% 68 Wizard Run 0 Options --------- ASCII 0 Keyboard 0 Movement Numpad Keybinds 0 Fullscreen 1 Font 18/SmallcapsGlow Map View 76x50 Tactical HUD 1 Map Filters NONE Filters NONE Steam 1 RUN: dd916ef0-0e9c-4160-998d-762b77a77d9e